Cogmind - Beta 15 @@@ ROGUE MODE // 2025.08.04 @ 23:42:25 Player: Naughtyusername Result: Destroyed by H-71 Marshal with Heavy Mass Driver Performance ------------- Evolutions (7) 3500 Regions Visited (16) 3200 Robots Destroyed (223) 1115 Value Destroyed (10903) 10903 Prototype IDs (25) 500 Alien Tech Used (0) 0 Bonus (4559) 4559 TOTAL SCORE: 23777 Bonus ------- High Alert Combat Kills 2237 Follower Combat Kills 227 Registered with UFD 300 Met Optimus in HQ 500 Met Warlord at Base 500 MAIN.C Attacked Warlord 500 Warlord Defense Kills 318 Friendly Fire -23 Cogmind --------- Core Integrity 0/1300 Matter 205/300 Energy 95/100 System Corruption 28% Temperature Warm (157) Movement Core (50) Location -3/Research Parts ------- > --- POWER (2) -------- (None) > --- PROPULSION (4) --- (None) > --- UTILITY (11) ----- Improved Launcher Guidance Computer Graphene Brace > --- WEAPON (4) ------- (None) > --- INVENTORY (5) ---- Field Propulsion Array Field Propulsion Array Improved Signal Interpreter Peak State ------------ > --- POWER ------------ Vortex Chain Reactor > --- PROPULSION ------- Centrium Heavy Treads Field Propulsion Array > --- UTILITY ---------- Improved Cryofiber Web High-capacity Storage Unit Surveybot 17 Chip Experimental Target Analyzer Transmission Jammer Centrium Medium Armor Plating Centrium Medium Armor Plating Advanced Remote Force Field Ghost Barrier > --- WEAPON ----------- Advanced Variable Charge Gun Heavy Plasma Cannon Enhanced Gauss Cannon Light Antimatter Cannon > --- INVENTORY -------- Light Nuclear Core Improved Medium Treads Experimental Matter Compressor Deep Structural Scanner Improved Signal Interpreter Improved Terrain Scanner Target Analyzer Quantum Capacitor Improved Propulsion Shielding Improved Medium Armor Plating Centrium Medium Armor Plating Centrium Medium Armor Plating Improved Hardlight Generator Vortex Shotgun Heavy Plasma Cannon [Rating: 148] Favorites ----------- Power Neutrino Core Engine Angular Momentum Engine Power Core Neutrino Core Reactor Vortex Chain Reactor Propulsion Centrium Heavy Treads Treads Centrium Heavy Treads Leg Carbon-fiber Leg Wheel Wheel Flight Unit Field Propulsion Array Utility High-capacity Storage Unit Device Advanced Heat Sink Storage High-capacity Storage Unit Processor Surveybot 17 Chip Hackware Ghost Barrier Protection Centrium Medium Armor Plating Weapon Hypervelocity Gauss Cannon Energy Gun Medium Laser Energy Cannon Light EM Pulse Cannon Ballistic Gun Autogun Ballistic Cannon Hypervelocity Gauss Cannon Launcher Smartbomb Launcher Impact Weapon Heavy Mace Build | -11 -10 -10 -9 -9 -6 -6 -6 -6 -6 -5 -5 -5 -5 -4 -4 -3 ------- Run | Yrd Mat Sub Rec Scr Fac Ext Cet Arc Hub Fac Upp Upp War Pro Fac Res Slots Evolved 14 | . . . . . 8 . . . . 2 . . . . 2 2 Power 1 | . . . . . 1 . . . . . . . . . . . Propulsion 2 | . . . . . 2 . . . . . . . . . . . Utility 9 | . . . . . 3 . . . . 2 . . . . 2 2 Weapon 2 | . . . . . 2 . . . . . . . . . . . Parts Attached 204 | 5 4 2 4 6 13 15 7 4 2 27 7 . 7 5 43 53 Power 24 | . 1 . . 2 2 . 2 . . 4 1 . 1 . 4 7 Engine 7 | . 1 . . 1 2 . 2 . . . 1 . . . . . Core 8 | . . . . 1 . . . . . 4 . . . . 2 1 Reactor 9 | . . . . . . . . . . . . . 1 . 2 6 Propulsion 54 | 2 . 2 2 2 2 7 2 . 1 2 1 . . 1 16 14 Treads 18 | 2 . . . . . 2 . . 1 . 1 . . 1 5 6 Leg 23 | . . . . . . 5 2 . . . . . . . 10 6 Wheel 10 | . . 2 2 2 2 . . . . 2 . . . . . . Hover . | . . . . . . . . . . . . . . . . . Flight 3 | . . . . . . . . . . . . . . . 1 2 Utility 61 | 1 1 . 1 . 4 3 2 4 . 10 2 . 4 1 11 17 Device 33 | 1 . . . . 3 1 . 1 . 3 1 . 2 1 8 12 Storage 5 | . 1 . 1 . . . . . . 1 . . 1 . . 1 Processor 4 | . . . . . 1 . . . . 1 . . . . 1 1 Hackware 3 | . . . . . . . . 2 . . . . . . 1 . Protection 16 | . . . . . . 2 2 1 . 5 1 . 1 . 1 3 Artifact . | . . . . . . . . . . . . . . . . . Weapon 65 | 2 2 . 1 2 5 5 1 . 1 11 3 . 2 3 12 15 Energy Gun 14 | 2 . . 1 . . . 1 . . 1 . . 2 1 . 6 Energy Cannon 20 | . . . . . 3 3 . . . 5 . . . 2 4 3 Ballistic Gun 10 | . 1 . . 2 1 1 . . . . . . . . 1 4 Ballistic Cannon 16 | . . . . . . . . . 1 4 2 . . . 7 2 Launcher 4 | . 1 . . . . 1 . . . 1 1 . . . . . Special Weapon . | . . . . . . . . . . . . . . . . . Impact Weapon 1 | . . . . . 1 . . . . . . . . . . . Slashing Weapon . | . . . . . . . . . . . . . . . . . Piercing Weapon . | . . . . . . . . . . . . . . . . . Special Melee Weapon . | . . . . . . . . . . . . . . . . . Unidentified Prototypes 15 | . . . . . . . 1 . 1 1 . . 5 . 5 2 Corrupted Parts 2 | . . . . . . . 1 . . . . . . . . 1 System Corruption 11 | . . . . . . . 9 . . . . . . . . 2 Parts Lost 110 | . . 1 . . . 3 . 1 8 8 9 . 3 3 22 52 Power 13 | . . . . . . . . . 1 1 1 . . . 2 8 Propulsion 24 | . . 1 . . . 1 . . 3 1 1 . . 1 3 13 Utility 32 | . . . . . . 1 . 1 . 2 3 . . . 9 16 Weapon 41 | . . . . . . 1 . . 4 4 4 . 3 2 8 15 Highest Loss Streak 16 | . . 1 . . . 2 . 1 8 4 5 . 3 2 6 16 To Critical Strikes 1 | . . 1 . . . . . . . . . . . . . . Average Backups 16 | 3 10 11 18 18 18 19 18 17 16 15 14 15 18 17 16 15 Power 1 | 1 1 1 1 1 2 2 . . . . . . . . 1 1 Propulsion 3 | 1 4 2 6 4 1 3 2 2 2 2 1 1 1 . 4 8 Utility 6 | . 1 2 2 4 7 5 9 9 10 8 7 8 10 13 7 2 Weapon 5 | 1 3 6 7 8 7 7 6 5 4 4 5 5 7 3 3 3 Tool/Special . | . . . . . . . . . . . . . . . . . Unused Backups 48 | 2 5 . 1 7 3 4 5 1 . 3 . . 5 1 4 7 Power 7 | . 3 . . . 1 1 . . . . . . . . . 2 Propulsion 19 | 2 . . . 5 . 1 5 . . 1 . . 1 . . 4 Utility 15 | . 2 . . 1 1 1 . 1 . 1 . . 2 1 4 1 Weapon 7 | . . . 1 1 1 1 . . . 1 . . 2 . . . Tool/Special . | . . . . . . . . . . . . . . . . . Average Slot Usage (%) 89 | . 100 97 100 94 92 97 100 100 94 86 87 82 78 76 88 77 Engine 6 | . 14 14 14 12 11 13 13 13 11 . 2 5 3 . . . Core 2 | . . . . . . . . . . 9 7 5 3 . . 2 Reactor 1 | . . . . . . . . . . . . . 1 5 5 4 Treads 6 | . 28 7 . . . 1 . . . 2 9 11 10 11 2 15 Leg 4 | . . . . . . 5 26 26 24 1 . . . . 14 1 Wheel 8 | . . 18 28 26 25 18 . . . 7 1 . . . . . Device 15 | . 14 14 14 13 16 13 6 6 13 16 17 17 14 13 21 18 Storage 8 | . 14 14 14 13 6 6 6 6 6 5 5 5 5 5 6 11 Processor 3 | . . . . . 4 6 . . . 3 5 5 5 5 8 . Hackware 2 | . . . . . . . . 1 13 9 2 . . . 4 3 Protection 4 | . . . . . . 5 19 17 . 3 7 11 11 14 2 1 Energy Gun 8 | . 25 24 27 18 . . 4 6 5 2 4 . 6 2 2 5 Energy Cannon 5 | . . . . . 6 6 21 17 13 12 1 . . 7 6 6 Ballistic Gun 2 | . . . . 7 18 15 . 2 . . . . . . . . Ballistic Cannon 3 | . . . . . . . . . 4 5 12 11 9 2 9 1 Peak Build Rating 148 | 7 10 10 11 17 49 57 62 69 72 112 122 119 145 137 148 135 Average Rating 79 | 6 8 9 10 12 39 50 59 66 68 93 117 116 118 127 134 113 On Entrance 61 | 6 7 9 10 11 17 49 55 62 69 59 110 119 118 124 115 113 Naked Turns 153 | . . . . 86 . . . . . . . . . . . 67 Heaviest Build 153 | 13 34 34 53 55 89 100 97 114 92 125 125 109 142 144 143 153 Greatest Support 160 | 40 40 40 32 28 44 60 60 60 80 80 160 160 160 160 108 116 Greatest Overweight (x) 4 | . . 1 3 3 2 3 1 1 1 4 4 . 1 1 2 1 Average Overweight (x) 1 | . . . 1 1 1 1 1 1 . 1 . . . . . . Largest Inventory Capacity 20 | 8 15 15 20 20 20 20 20 20 20 20 20 20 20 20 20 20 Average Capacity 19 | 8 14 15 19 19 20 20 20 20 20 20 20 20 20 20 20 19 Most Carried 20 | 8 15 13 20 20 20 20 20 20 19 20 20 19 20 19 20 20 Average Carried 17 | 3 10 11 18 18 18 19 19 19 18 18 15 15 19 17 17 15 Final Capacity 20 | 8 15 15 20 20 20 20 20 20 20 20 20 20 20 20 20 5 Final Carried 20 | 6 13 11 20 20 20 20 20 19 16 20 12 19 19 15 16 5 Class Distribution -------------------- 21% | Scavenger-Tank 18% | Commander-Mutant 9% | Tank 8% | Hacker-Skirmisher 8% | Mutant 8% | Hacker-Tank 6% | Hacker-Gunner 5% | Derelict-Tank 3% | Skirmisher 3% | Hacker-Mutant Dominant Class ---------------- Mutant | -10/Materials Mutant | -10/Subcaves Commander-Mutant | -9/Recycling Commander-Mutant | -9/Scraptown Derelict-Skirmisher | -6/Factory Derelict-Tank | -6/Extension Scavenger-Tank | -6/Cetus Scavenger-Tank | -6/Archives Scavenger-Skirmisher | -6/Hub_04(d) Hacker-Skirmisher | -5/Factory Scavenger-Tank | -5/Upper Caves Tank | -5/Upper Caves Skirmisher | -5/Warlord Tank | -4/Proximity Caves Hacker-Tank | -4/Factory Scavenger-Tank | -3/Research Resources | -11 -10 -10 -9 -9 -6 -6 -6 -6 -6 -5 -5 -5 -5 -4 -4 -3 ----------- Run | Yrd Mat Sub Rec Scr Fac Ext Cet Arc Hub Fac Upp Upp War Pro Fac Res Matter Collected 8522 | 250 283 33 170 68 117 702 100 260 24 607 891 217 396 472 2543 1389 Remotely . | . . . . . . . . . . . . . . . . . Salvage Created 9876 | 102 527 49 99 . 117 802 236 546 127 662 731 98 85 235 2116 3344 Parts 434 | 4 40 7 4 . 9 30 10 24 7 31 23 1 7 8 101 128 Haulers Intercepted 3 | . 2 . . . . . . . . . . . . . . 1 Recyclers Shooed 12 | 1 . . 1 . . . . . 1 1 . . . . 5 3 Parts Field Recycled . | . . . . . . . . . . . . . . . . . Retrieved Matter . | . . . . . . . . . . . . . . . . . Parts Self-Destructed 33 | . . 6 . . . . . . . . 17 2 . 8 . . Prevented 6 | . . . . . . . . . . . 6 . . . . . Kills | -11 -10 -10 -9 -9 -6 -6 -6 -6 -6 -5 -5 -5 -5 -4 -4 -3 ------- Run | Yrd Mat Sub Rec Scr Fac Ext Cet Arc Hub Fac Upp Upp War Pro Fac Res Combat Hostiles Destroyed 175 | . 17 7 2 . . 14 3 4 2 12 14 1 3 4 45 47 Melee 4 | . . . . . . . . . . . 1 . 2 . . 1 Guns 25 | . 1 1 2 . . 8 . . . 2 1 . . . 1 9 Cannons 80 | . . . . . . . 1 1 1 3 10 . 1 1 35 27 AOE 41 | . 16 6 . . . 6 . . . 3 . 1 . 2 5 2 Classes Destroyed 22 | 2 7 1 2 . 1 1 . . 1 . 2 . . . 3 2 Worker 4 | . 4 . . . . . . . . . . . . . . . Builder 16 | . 2 . . . 1 . . . 1 1 . . . . 9 2 Tunneler 5 | 1 1 . 1 . 1 . . . . 1 . . . . . . Hauler 3 | . 2 . . . . . . . . . . . . . . 1 Recycler 8 | 1 1 . . . . 1 . . . 1 . . . . . 4 Mechanic 1 | . . . . . . . . . . . . . . . . 1 Operator 8 | . 1 . . . 1 . . 5 . . . . . . 1 . Drone 1 | . . . . . . 1 . . . . . . . . . . Watcher 2 | . 2 . . . . . . . . . . . . . . . Swarmer 29 | . 6 6 . . . . . . . 5 . . 1 . 8 3 Saboteur 1 | . . . . . . . . . . . . . . . . 1 Grunt 60 | . 11 . 1 . . 8 . . . . 4 1 1 2 9 23 Brawler 5 | . . . . . . . . . . . 1 . . . 2 2 Duelist 9 | . . . . . . . . . . . 5 . . . 3 1 Protector 3 | . . . . . . . . . . . . . . . 2 1 Sentry 19 | . . . 1 . . 2 . 4 . . 1 . . 1 5 5 Demolisher 2 | . . . 1 . . . . . . . . . . 1 . . Specialist 2 | . . . . . . . . . . . . . . . 2 . Hunter 19 | . . . . . 1 2 . . 1 5 . . 1 . 5 4 Programmer 21 | . . . . . . . . . 1 2 3 . . . 8 7 Heavy 1 | . . . . . . . . . . . . . . . 1 . Cetus Guard 3 | . . . . . . . 3 . . . . . . . . . Subdweller 1 | . . 1 . . . . . . . . . . . . . . Decomposer 2 | . . . . . . . . . . . 2 . . . . . Packrat 1 | . . . . . . . . . . . . 1 . . . . Thug 1 | . . . . . . 1 . . . . . . . . . . Best Kill Streak 10 | 2 8 3 1 . 1 4 2 2 2 3 5 1 1 2 9 10 Combat Bots Only 8 | . 8 3 1 . . 4 2 2 1 3 5 1 1 2 6 7 Max Kills in Single Turn 6 | 1 4 3 2 . 1 3 1 1 1 3 1 1 1 2 6 2 Gunslinging 1 | . . . . . . 1 . . . . . . . . . . Exploded 3 | . 3 3 . . . 3 . . . 3 . 1 . 2 3 1 Melee 1 | . . . . . . . . . . . 1 . 1 . . 1 Uniques/NPCs Destroyed . | . . . . . . . . . . . . . . . . . Combat | -11 -10 -10 -9 -9 -6 -6 -6 -6 -6 -5 -5 -5 -5 -4 -4 -3 -------- Run | Yrd Mat Sub Rec Scr Fac Ext Cet Arc Hub Fac Upp Upp War Pro Fac Res Hostile Shots Fired 1800 | . 17 47 8 . . 68 10 15 76 165 117 . 129 22 437 689 Missed 527 | . 6 18 2 . . 23 2 6 23 40 37 . 35 1 136 198 Hits 1273 | . 11 29 6 . . 45 8 9 53 125 80 . 94 21 301 491 Melee 41 | . . . . . . . . . . . 7 . 5 . 10 19 Projectile 1232 | . 11 29 6 . . 45 8 9 53 125 73 . 89 21 291 472 AOE 20 | . . . . . . . . . . . . . . 20 . . Critical Strikes 79 | . 1 1 . . . 2 1 . 1 2 8 . 4 1 19 39 Actively Blocked 20 | . . . . . . . . . . . . . . . . 20 Part Disruptions 4 | . . . . . . . . . . . . . 1 . . 3 Damage Taken 25105 | . 168 318 78 . . 876 230 192 1307 2234 1534 . 2428 1192 4597 9951 Core 2896 | . . 73 58 . . 153 28 . 242 176 91 . 123 215 436 1301 Absorbed by Shields 2497 | . . . 9 . . . . . . 117 334 . . 111 1103 823 Redirected to Shielding 44 | . . . . . . . . . . . . . . . . 44 Ignored by Resistances 44 | . . . . . . . . 44 . . . . . . . . Regen/Repaired (Parts) 301 | . . . . . . . . . . . . . 301 . . . Core Remaining (%) 59 | 100 . . . 47 . . . . 50 . . . . 39 62 . Volleys Fired 699 | 3 37 14 9 . 12 52 25 56 8 76 48 2 4 36 141 176 Largest 4 | 2 2 2 2 . 1 4 3 3 3 3 3 2 4 2 4 4 Hottest 330 | 100 100 100 106 . 69 224 240 168 184 243 240 102 240 240 311 330 Shots Fired 1346 | 6 53 20 18 . 12 100 41 111 14 126 95 4 9 53 323 361 Gun 438 | 6 36 12 18 . . 51 13 77 1 9 10 . 3 2 31 169 Cannon 851 | . . . . . 12 35 28 34 13 110 79 3 6 47 292 192 Launcher 57 | . 17 8 . . . 14 . . . 7 6 1 . 4 . . Special . | . . . . . . . . . . . . . . . . . Kinetic 499 | . . . . . . 51 . 36 3 26 75 3 6 . 212 87 Thermal 490 | 6 36 12 18 . . 20 13 41 1 45 10 . 1 49 82 156 Explosive 45 | . 17 8 . . . 14 . . . 1 . 1 . 4 . . Electromagnetic 289 | . . . . . 12 15 28 34 10 54 10 . . . 15 111 Entropic 23 | . . . . . . . . . . . . . 2 . 14 7 Robot Hit Streak 18 | 4 6 16 6 . 2 8 9 8 6 15 5 6 8 5 18 14 Robot Miss Streak 6 | . 4 . 2 . 2 2 1 2 2 4 3 . 1 2 4 6 Penetration Max 2 | . . . . . . . . . . . . . 1 . 1 2 Secondary Targets 4 | . . . . . . 2 . . . . . . . . . 2 Max Gunslinging Chain 1 | . . . . . . 1 . . . . . . . . . 1 Capacitor 30 | . . . . . . . . . . . . . . . 9 21 Shots Hit Robots 776 | 4 28 14 12 . 7 46 22 71 8 56 56 1 7 18 181 245 Core Hits 413 | 3 42 11 5 . 2 30 7 28 4 27 22 2 3 12 93 122 Critical Kills 28 | . . . . . . . . 1 1 1 6 1 1 1 15 1 Critical Parts Destroyed 46 | . . . . . . . . 1 . 3 9 . 2 . 30 1 Critical Strikes 108 | . . . . . . . . 4 1 6 19 1 3 1 65 8 Burn 2 | . . . . . . . . . . . . . . . . 2 Meltdown 3 | . . . . . . . . . . 1 . . . 1 1 . Destroy 74 | . . . . . . . . 2 1 3 17 1 3 . 44 3 Blast 23 | . . . . . . . . . . 1 2 . . . 17 3 Corrupt 4 | . . . . . . . . 2 . 1 . . . . 1 . Detonate 2 | . . . . . . . . . . . . . . . 2 . Melee Attacks 1 | . . . . . 1 . . . . . . . . . . . Impact 1 | . . . . . 1 . . . . . . . . . . . Slashing . | . . . . . . . . . . . . . . . . . Piercing . | . . . . . . . . . . . . . . . . . Sneak Attacks . | . . . . . . . . . . . . . . . . . Combat Hostiles . | . . . . . . . . . . . . . . . . . Follow-up Attacks . | . . . . . . . . . . . . . . . . . Damage Inflicted 29591 | 51 1984 657 172 . 300 2161 454 1677 248 2020 1678 109 301 860 6808 10111 Guns 7000 | 51 238 141 172 . . 471 . 1108 . 154 326 . 117 . 1095 3127 Cannons 14981 | . . . . . 181 206 454 493 209 1208 1033 18 96 560 4371 6152 Explosions 7296 | . 1726 516 . . 119 1484 . 76 . 658 246 61 . 300 1314 796 Melee . | . . . . . . . . . . . . . . . . . Ramming 314 | . 20 . . . . . . . 39 . 73 30 88 . 28 36 Kinetic 8623 | . . . . . . 471 . 486 42 469 994 18 96 . 3196 2851 Thermal 9576 | 51 238 141 172 . 119 554 . 622 . 528 326 . . 560 1808 4457 Explosive 5033 | . 1726 516 . . . 1118 . . . 260 . 61 . 300 639 413 Electromagnetic 4844 | . . . . . 181 18 454 569 167 763 285 . . . 354 2053 Impact . | . . . . . . . . . . . . . . . . . Slashing . | . . . . . . . . . . . . . . . . . Piercing . | . . . . . . . . . . . . . . . . . Entropic 1201 | . . . . . . . . . . . . . 117 . 783 301 Highest Corruption 28 | . 2 2 2 2 . . 9 9 13 4 11 11 11 2 11 28 Average Corruption 5 | . 1 2 2 2 . . 9 9 11 1 9 11 9 2 6 7 Corruption Purged . | . . . . . . . . . . . . . . . . . Corruption Blocked 1 | . . . . . . 1 . . . . . . . . . . Effects 209 | . 7 3 8 . . . 12 18 4 10 32 14 2 10 43 46 Message Errors 51 | . 4 . 3 . . . 4 1 1 2 7 4 . 2 11 12 Matter Fused 37 | . . . 1 . . . 1 6 1 3 6 2 . 4 9 4 Heat Flow Errors 22 | . . . 1 . . . 2 4 1 2 4 1 . . 3 4 Energy Discharges 17 | . . . . . . . 1 2 . 1 2 2 1 1 2 5 Parts Rejected 6 | . 1 . . . . . . . . 2 . . . . 3 . Parts Fused 3 | . 1 1 . . . . . . . . . 1 . . . . Data Loss (minor) 21 | . 1 2 1 . . . 1 1 . . 4 1 1 2 3 4 Data Loss (major) 14 | . . . 1 . . . . 1 . . 2 2 . . 4 4 Misfires 10 | . . . . . . . 2 2 . . 1 1 . 1 1 2 Alerts 7 | . . . 1 . . . 1 1 . . 1 . . . 2 1 Misdirections 4 | . . . . . . . . . 1 . 1 . . . . 2 Weapon Failures 17 | . . . . . . . . . . . 4 . . . 5 8 Overload Shots 11 | . . . . . . . 1 . . 3 5 . 1 1 . . Overflow Damage 1226 | . 179 13 . . 71 72 . 28 . 99 2 21 . 5 374 362 Projectiles 529 | . . . . . 37 . . 28 . 38 2 . . 5 106 313 Explosions 697 | . 179 13 . . 34 72 . . . 61 . 21 . . 268 49 Melee . | . . . . . . . . . . . . . . . . . Knockbacks 63 | . . . . . . . . . . 9 7 . 6 . 27 14 Impact 4 | . . . . . . . . . . . 1 . 1 . . 2 Kinetic 54 | . . . . . . . . . . 7 6 . 3 . 27 11 Secondary 5 | . . . . . . . . . . 2 . . 2 . . 1 Self-Inflicted Damage 787 | . 36 7 . . . 190 . . . 101 76 . . . 235 142 Shots 18 | . 1 1 . . . 3 . . . 3 4 . . . 3 3 Rammed 28 | . 1 . . . . . . . 1 . 9 1 6 . 2 8 Targets Rammed 38 | . 2 . . . . . . . 6 . 10 1 8 . 3 8 Kicked 6 | . . . . . . . . . 5 . . . . . 1 . Crushed 4 | . 1 . . . . . . . . . 1 . 2 . . . Highest Temperature 718 | 117 168 . 167 . 42 356 254 389 96 197 350 85 243 718 453 455 Average Temperature 99 | 59 51 . 55 . 23 110 75 106 51 74 93 42 86 204 105 113 Received Heat Transfer 3199 | . 66 120 7 . . 153 . 18 6 76 173 . 162 . 674 1744 Effects 12 | . . . . . . . . 4 . . . . . 3 1 4 Shutdowns 3 | . . . . . . . . 1 . . . . . . . 2 Energy Bleed 3 | . . . . . . . . . . . . . . 1 1 1 Interference 4 | . . . . . . . . 3 . . . . . . . 1 Short Circuit 1 | . . . . . . . . . . . . . . 1 . . Damage (core) 1 | . . . . . . . . . . . . . . 1 . . Siege Activations . | . . . . . . . . . . . . . . . . . Martial Activations . | . . . . . . . . . . . . . . . . . Shielding Activations . | . . . . . . . . . . . . . . . . . Robots Disrupted 9 | . . . . . . . 1 1 . 4 . . . . . 3 Combat Hostiles 7 | . . . . . . . 1 1 . 4 . . . . . 1 Robots Corrupted 22 | . . . . . . . 2 3 1 3 2 . . . 2 9 Combat Hostiles 21 | . . . . . . . 2 3 1 3 2 . . . 2 8 Parts Fried 54 | . . . . . 2 . 3 5 3 7 1 . 1 . 9 23 Impact Corruptions . | . . . . . . . . . . . . . . . . . Robots Melted 4 | . . . . . . . . . . 1 . . . 1 2 . Combat Hostiles 4 | . . . . . . . . . . 1 . . . 1 2 . Parts Melted 19 | 2 . 1 . . . . . . . 5 1 . . 2 4 4 Heat Transferred 8370 | 148 703 407 490 . 150 409 . 814 . 557 298 . . 501 1765 2128 Parts Sabotaged 4 | . . . . . . . . . . . . . . . . 4 Parts Stolen . | . . . . . . . . . . . . . . . . . Parts Stripped . | . . . . . . . . . . . . . . . . . Power Chain Reactions 6 | . . . . . 2 . . 1 . 2 . . . . . 1 Alert | -11 -10 -10 -9 -9 -6 -6 -6 -6 -6 -5 -5 -5 -5 -4 -4 -3 ------- Run | Yrd Mat Sub Rec Scr Fac Ext Cet Arc Hub Fac Upp Upp War Pro Fac Res Maximum Alert Level 4 | . 2 . . . . 1 . . . . . . . . 3 4 Low Security (%) 57 | 100 22 . 100 . 100 93 100 100 100 100 . . . . 22 . Level 1 9 | . 36 . . . . 6 . . . . . . . . 26 . Level 2 14 | . 40 . . . . . . . . . . . . . 21 33 Level 3 18 | . . . . . . . . . . . . . . . 29 61 Level 4 . | . . . . . . . . . . . . . . . . 4 Level 5 . | . . . . . . . . . . . . . . . . . High Security . | . . . . . . . . . . . . . . . . . Max Security . | . . . . . . . . . . . . . . . . . Peak Influence 1210 | 10 467 . 107 . 11 225 40 43 60 126 . . . . 958 1210 Initial 500 | . . . 89 . . . 21 . . 7 . . . . . 500 Average 290 | 1 307 . 41 . . 111 4 8 26 31 . . . . 459 762 Influence Increases 7093 | 10 721 145 385 . 23 610 143 174 106 597 490 20 60 80 1705 1824 Destroy 0b10 Robot/C 3500 | . 340 120 120 . . 260 80 80 40 240 280 20 60 80 860 920 Destroy 0b10 Robot/NC 280 | 10 65 . 30 . 5 15 5 25 5 15 . . . . 60 45 Destroy Leader 570 | . 68 10 . . . 40 . . 20 50 30 . . . 190 162 Allied During Kill 102 | . . . 51 . . 28 20 3 . . . . . . . . Successful Hack 231 | . 10 . 19 . 14 18 8 . 24 58 . . . . 16 64 Select Force Hacks 150 | . . . 150 . . . . . . . . . . . . . Disable Machine 630 | . 135 . . . . 75 30 45 15 45 . . . . 180 105 Anti-Garrison Action 150 | . . . . . . . . . . . . . . . . 150 Destroy Structure 865 | . 88 . 15 . 4 144 . 6 2 114 . . . . 324 168 Partial Spotted 30 | . 15 . . . . . . . . . . . . . . 15 Lose Combat Pursuer 585 | . . 15 . . . 30 . 15 . 75 180 . . . 75 195 Influence Decreases 5903 | 10 292 387 519 53 23 571 182 174 91 506 414 202 40 100 751 1588 Entered New Map 934 | . . 207 98 53 . . 18 . . 8 40 36 . 20 . 454 Time Decay 3510 | 10 292 170 379 . 23 371 94 144 50 286 288 166 12 80 531 614 Lost Part 1015 | . . 10 . . . 30 . 10 41 70 86 . 28 . 220 520 Lost Ally 168 | . . . 42 . . 20 70 20 . 16 . . . . . . Purge Threat 276 | . . . . . . 150 . . . 126 . . . . . . Squads Dispatched 44 | . 3 . . . 1 4 . . 3 5 . . . . 13 15 Investigation 7 | . 2 . . . 1 1 . . . 1 . . . . . 2 Extermination 11 | . . . . . . . . . . 3 . . . . 5 3 Reinforcement 14 | . 1 . . . . 3 . . 3 1 . . . . 4 2 Assault 8 | . . . . . . . . . . . . . . . 3 5 Garrison 4 | . . . . . . . . . . . . . . . 1 3 Intercept . | . . . . . . . . . . . . . . . . . Searches Triggered . | . . . . . . . . . . . . . . . . . Construction Impeded 5 | . . . . . . 2 . . . 1 . . . . 1 1 Haulers Reinforced . | . . . . . . . . . . . . . . . . . Active Scanning Responses . | . . . . . . . . . . . . . . . . . Cargo Convoy Interrupts . | . . . . . . . . . . . . . . . . . Stealth | -11 -10 -10 -9 -9 -6 -6 -6 -6 -6 -5 -5 -5 -5 -4 -4 -3 --------- Run | Yrd Mat Sub Rec Scr Fac Ext Cet Arc Hub Fac Upp Upp War Pro Fac Res Distress Signals 32 | . 4 . . . . 1 1 . 2 1 . . . 17 4 2 Communications Jammed 30 | . . . . . . . . . . . . . . . 30 . Distress Signals 30 | . . . . . . . . . . . . . . . 30 . Times Spotted 361 | . 24 8 4 . 2 22 5 26 9 38 23 1 39 4 63 93 Peak Tracking Total 19 | . 4 5 2 . 1 5 5 1 7 6 9 1 19 2 6 16 Tactical Retreats 26 | . . 1 . . . 2 . 1 . 5 8 . . . 3 6 Traps | -11 -10 -10 -9 -9 -6 -6 -6 -6 -6 -5 -5 -5 -5 -4 -4 -3 ------- Run | Yrd Mat Sub Rec Scr Fac Ext Cet Arc Hub Fac Upp Upp War Pro Fac Res Traps Triggered 15 | . 4 . . . . 1 . . 2 5 . . 1 . . 2 Indirectly . | . . . . . . . . . . . . . . . . . Trap Hack Attempts . | . . . . . . . . . . . . . . . . . Triggered . | . . . . . . . . . . . . . . . . . Disarmed . | . . . . . . . . . . . . . . . . . Reprogrammed . | . . . . . . . . . . . . . . . . . Reused . | . . . . . . . . . . . . . . . . . Traps Extracted . | . . . . . . . . . . . . . . . . . Installed . | . . . . . . . . . . . . . . . . . Triggered . | . . . . . . . . . . . . . . . . . Machines | -11 -10 -10 -9 -9 -6 -6 -6 -6 -6 -5 -5 -5 -5 -4 -4 -3 ---------- Run | Yrd Mat Sub Rec Scr Fac Ext Cet Arc Hub Fac Upp Upp War Pro Fac Res Machines Disabled 45 | . 9 2 . . . 5 2 3 1 3 . . . . 12 8 Max in Single Turn 6 | . 6 2 . . . 2 1 1 1 1 . . . . 5 2 Garrison Access 2 | . . . . . . . . . . . . . . . 1 1 Energy Cycler 2 | . . . . . . 2 . . . . . . . . . . Machines Repaired . | . . . . . . . . . . . . . . . . . Machines Dismantled . | . . . . . . . . . . . . . . . . . Machines Sabotaged . | . . . . . . . . . . . . . . . . . Overloaded Fab Kills . | . . . . . . . . . . . . . . . . . Hacking | -11 -10 -10 -9 -9 -6 -6 -6 -6 -6 -5 -5 -5 -5 -4 -4 -3 --------- Run | Yrd Mat Sub Rec Scr Fac Ext Cet Arc Hub Fac Upp Upp War Pro Fac Res Machines Accessed 69 | . 3 1 11 9 3 5 3 . 1 16 . . 2 . 6 9 Terminals 31 | . 3 . 6 . 3 5 3 . 1 5 . . . . 1 4 Fabricators 6 | . . . . . . . . . . 5 . . . . 1 . Repair Stations 3 | . . . . . . . . . . 1 . . . . 1 1 Recycling Units 11 | . . . 5 . . . . . . 3 . . . . 1 2 Scanalyzers 3 | . . . . . . . . . . 1 . . . . 1 1 Garrison Access 3 | . . . . . . . . . . 1 . . . . 1 1 Total Hacks 226 | . 8 4 22 77 11 14 8 . 3 37 . . 5 . 19 18 Successful 150 | . 2 4 14 77 7 4 1 . 1 22 . . 5 . 7 6 Failed 76 | . 6 . 8 . 4 10 7 . 2 15 . . . . 12 12 Catastrophic 15 | . 1 . . . . 3 . . . 2 . . . . 5 4 Database Lockouts . | . . . . . . . . . . . . . . . . . Manual 40 | . 6 . 15 . 5 3 . . . 7 . . . . . 4 Terminals 90 | . 8 . 17 . 11 14 8 . 3 15 . . . . 5 9 Fabricators 16 | . . . . . . . . . . 13 . . . . 3 . Repair Stations 7 | . . . . . . . . . . 2 . . . . 3 2 Recycling Units 14 | . . . 5 . . . . . . 4 . . . . 1 4 Scanalyzers 10 | . . . . . . . . . . 2 . . . . 6 2 Garrison Access 3 | . . . . . . . . . . 1 . . . . 1 1 Terminal Hacks 108 | . 1 4 4 77 3 2 1 . 1 7 . . 5 . . 3 Record 86 | . . 4 . 76 1 . 1 . . . . . 4 . . . Robot Analysis 1 | . . . 1 . . . . . . . . . . . . . Prototype ID Bank 2 | . 1 . 1 . . . . . . . . . . . . . Open Door 3 | . . . . . 1 1 . . . . . . 1 . . . Open DSF 1 | . . . . . . . . . . . . . . . . 1 Level Access Points 2 | . . . 1 . 1 . . . . . . . . . . . Branch Access Points 1 | . . . . . . . . . . 1 . . . . . . Repair Station Index 1 | . . . . . . . . . . 1 . . . . . . Unreport Threat 2 | . . . . . . 1 . . . 1 . . . . . . Locate Traps 2 | . . . . . . . . . . 1 . . . . . 1 Recall Investigation 2 | . . . . . . . . . . 2 . . . . . . Recall Assault 1 | . . . . . . . . . 1 . . . . . . . Zone Layout 3 | . . . 1 . . . . . . 1 . . . . . 1 Proto ID Catalog 1 | . . . . 1 . . . . . . . . . . . . Fabricator Hacks 8 | . . . . . . . . . . 7 . . . . 1 . Network Status 3 | . . . . . . . . . . 3 . . . . . . Load Schematic 3 | . . . . . . . . . . 2 . . . . 1 . Build 2 | . . . . . . . . . . 2 . . . . . . Repair Station Hacks 3 | . . . . . . . . . . 1 . . . . 1 1 Scan Component 3 | . . . . . . . . . . 1 . . . . 1 1 Recycling Unit Hacks 2 | . . . . . . . . . . 2 . . . . . . Report Inventory 1 | . . . . . . . . . . 1 . . . . . . Retrieve Components 1 | . . . . . . . . . . 1 . . . . . . Scanalyzer 7 | . . . . . . . . . . 2 . . . . 4 1 Insert Component 4 | . . . . . . . . . . 1 . . . . 2 1 Analyze 3 | . . . . . . . . . . 1 . . . . 2 . Garrison Access Hacks 1 | . . . . . . . . . . . . . . . 1 . Seal Access 1 | . . . . . . . . . . . . . . . 1 . Unauthorized Hacks 21 | . 1 . 10 . 4 2 . . . 3 . . . . . 1 Terminals 14 | . 1 . 5 . 4 2 . . . 2 . . . . . . Botnet 9 | . 1 . 2 . 2 2 . . . 2 . . . . . . Skim 5 | . . . 3 . 2 . . . . . . . . . . . Fabricators . | . . . . . . . . . . . . . . . . . Repair Stations . | . . . . . . . . . . . . . . . . . Recycling Units 7 | . . . 5 . . . . . . 1 . . . . . 1 Recyclers 1 | . . . . . . . . . . 1 . . . . . . Tunnel 5 | . . . 5 . . . . . . . . . . . . . Fedlink 1 | . . . . . . . . . . . . . . . . 1 Scanalyzers . | . . . . . . . . . . . . . . . . . Garrison Access . | . . . . . . . . . . . . . . . . . Data Cores Recovered 1 | . . . . . 1 . . . . . . . . . . . Used . | . . . . . . . . . . . . . . . . . Hacking Detections 46 | . 3 . 6 . 2 4 3 . 1 15 . . . . 5 7 Full Trace Events 4 | . . . . . 1 1 . . . 1 . . . . . 1 Feedback Events . | . . . . . . . . . . . . . . . . . Feedback Blocked . | . . . . . . . . . . . . . . . . . Robot Schematics Acquired . | . . . . . . . . . . . . . . . . . Robots Built 1 | . . . . . . . . . . 1 . . . . . . Authchips . | . . . . . . . . . . . . . . . . . Time 40 | . . . . . . . . . . 40 . . . . . . Total Robot Build Rating 1 | . . . . . . . . . . 1 . . . . . . Part Schematics Acquired 3 | . . . . . . . . . . 1 . . . . 2 . Parts Built 1 | . . . . . . . . . . 1 . . . . . . Authchips . | . . . . . . . . . . . . . . . . . Time 204 | . . . . . . . . . . 204 . . . . . . Total Part Build Rating 8 | . . . . . . . . . . 8 . . . . . . Parts Repaired . | . . . . . . . . . . . . . . . . . Time . | . . . . . . . . . . . . . . . . . Parts Recycled . | . . . . . . . . . . . . . . . . . Recycled Matter . | . . . . . . . . . . . . . . . . . Retrieved Matter . | . . . . . . . . . . . . . . . . . Retrieved Components 1 | . . . . . . . . . . 1 . . . . . . Parts Scanalyzed 4 | . . . . . . . . . . 1 . . . . 2 1 Part Schematics Acquired 3 | . . . . . . . . . . 1 . . . . 2 . Parts Damaged 1 | . . . . . . . . . . . . . . . . 1 Bothacking | -11 -10 -10 -9 -9 -6 -6 -6 -6 -6 -5 -5 -5 -5 -4 -4 -3 ------------ Run | Yrd Mat Sub Rec Scr Fac Ext Cet Arc Hub Fac Upp Upp War Pro Fac Res Used RIF Installer . | . . . . . . . . . . . . . . . . . Robots Hacked . | . . . . . . . . . . . . . . . . . Non-combat . | . . . . . . . . . . . . . . . . . Combat . | . . . . . . . . . . . . . . . . . Robot Hacks Applied . | . . . . . . . . . . . . . . . . . Relay Couplers Released 3 | . . . . . . . . . . . . . . . . 3 Machine Destruction 3 | . . . . . . . . . . . . . . . . 3 Fabnet Peak Effective % . | . . . . . . . . . . . . . . . . . Robots Rewired 36 | . . . 25 . . 7 . . . 2 2 . . . . . Allies Hacked . | . . . . . . . . . . . . . . . . . Hacks Repelled . | . . . . . . . . . . . . . . . . . Allies | -11 -10 -10 -9 -9 -6 -6 -6 -6 -6 -5 -5 -5 -5 -4 -4 -3 -------- Run | Yrd Mat Sub Rec Scr Fac Ext Cet Arc Hub Fac Upp Upp War Pro Fac Res Total Allies 38 | . . . 25 . . 8 . . . 3 2 . . . . . Largest Group 20 | . . . 20 13 3 7 7 1 . 1 2 . . . . . Highest-Rated Group 259 | . . . 259 181 41 166 166 19 . 49 60 . . . . . Highest-Rated Ally 49 | . . . 34 27 21 31 31 19 . 49 30 . . . . . Total Orders 4 | . . . . 2 1 . . . . 1 . . . . . . STAY 2 | . . . . 1 1 . . . . . . . . . . . FOLLOW 1 | . . . . 1 . . . . . . . . . . . . EXPLORE 1 | . . . . . . . . . . 1 . . . . . . Ally Attacks 44 | . . . 16 1 . 6 14 . . 3 4 . . . . . Total Damage 1196 | . . . 629 24 . 107 436 . . . . . . . . . Kills 11 | . . . 7 1 . . 3 . . . . . . . . . Allies Corrupted 1 | . . . . . . . . . 1 . . . . . . . Allies Melted . | . . . . . . . . . . . . . . . . . Intel | -11 -10 -10 -9 -9 -6 -6 -6 -6 -6 -5 -5 -5 -5 -4 -4 -3 ------- Run | Yrd Mat Sub Rec Scr Fac Ext Cet Arc Hub Fac Upp Upp War Pro Fac Res Active Infowar (turns) 11598 | 28 790 346 1092 1700 309 1156 16 . 136 1413 142 474 986 348 1624 1038 Terrain 4368 | . . . . . . . . . . 896 28 474 986 255 691 1038 Structural 4994 | . . . . . 306 1156 16 . 136 1099 31 474 985 347 444 . Seismic 5513 | 28 790 346 1092 1700 309 507 . . . 630 111 . . . . . Jamming 1590 | . . . . . . . . . . . . . . . 1590 . Robot Analysis Total 1 | . . . 1 . . . . . . . . . . . . . Derelict Logs Recovered 5 | . . 1 . . . . . . . . 1 1 . 2 . . Drone Launches 4 | . . . . . . . . . 4 . . . . . . . Drone Recoveries 2 | . . . . . . . . . 1 1 . . . . . . Exploration | -11 -10 -10 -9 -9 -6 -6 -6 -6 -6 -5 -5 -5 -5 -4 -4 -3 ------------- Run | Yrd Mat Sub Rec Scr Fac Ext Cet Arc Hub Fac Upp Upp War Pro Fac Res Turns Passed 15853 | 51 790 346 1092 1824 309 1156 499 500 136 1787 719 479 1069 726 2337 2033 Spaces Moved 8401 | 18 420 244 713 1537 224 692 218 147 50 1021 298 289 593 334 893 710 Core 281 | . . . . 151 . . . . . . . . . . . 130 Treads 2852 | 18 420 38 . . . . . . 2 139 239 289 593 334 243 537 Legs 1130 | . . . . . . 61 218 147 48 . . . . . 650 6 Wheels 4101 | . . 206 713 1386 224 631 . . . 882 59 . . . . . Hover . | . . . . . . . . . . . . . . . . . Flight 37 | . . . . . . . . . . . . . . . . 37 Fastest Speed 37 | 160 160 100 100 50 100 100 190 190 160 115 160 160 160 160 112 37 Average Speed 147 | 160 160 116 111 111 100 124 190 190 188 140 161 160 171 173 189 189 Slowest Speed 260 | 160 160 240 145 145 115 190 190 190 190 240 240 160 240 240 260 250 Overloaded Moves . | . . . . . . . . . . . . . . . . . Propulsion Burnouts . | . . . . . . . . . . . . . . . . . Robots Hopped 7 | . . . . . . . . . . . . . . . . 7 Potential Cave-ins 13 | . . . . . . 10 . . . . . . . 3 . . Cave-ins Triggered . | . . . . . . . . . . . . . . . . . Exploration Rate (%) 49 | 2 80 28 99 88 4 64 80 84 11 32 44 48 79 40 23 29 Regions Visited 16 Branch Regions 11 Pre-discovered Areas 12 | . . 1 5 5 . . . . . . . . . 1 . . Known Exits Taken 6 | . . 1 . . . . . . 1 1 . . 1 1 1 . Unknown Exits Taken 10 | 1 1 . 1 1 1 1 1 1 . . 1 1 . . . . Scrap Searched 10 | . . . . 4 . . . . . . 2 2 . 2 . . Spaces Dug 135 | . . 8 . . 1 45 . . . 34 . . . 12 33 2 Terrain Destroyed 921 | . 96 49 . . 3 269 . 6 2 58 19 26 2 65 192 134 Melee 1 | . . . . . 1 . . . . . . . . . . . Projectile 202 | . . . . . . 8 . 6 2 40 19 . 2 14 79 32 AOE 718 | . 96 49 . . 2 261 . . . 18 . 26 . 51 113 102 Terrain Rammed . | . . . . . . . . . . . . . . . . . Walls Destroyed . | . . . . . . . . . . . . . . . . . Machines Disabled . | . . . . . . . . . . . . . . . . . Actions | -11 -10 -10 -9 -9 -6 -6 -6 -6 -6 -5 -5 -5 -5 -4 -4 -3 --------- Run | Yrd Mat Sub Rec Scr Fac Ext Cet Arc Hub Fac Upp Upp War Pro Fac Res Total 10682 | 36 481 283 993 1660 296 913 267 265 73 1245 437 301 633 426 1284 1089 Wait 561 | 1 2 19 74 50 28 30 . 49 7 37 33 1 . 38 106 86 Move 8376 | 17 419 243 712 1536 223 691 217 146 49 1020 297 288 593 333 892 700 Hop 3 | . . . . . . . . . . . . . . . . 3 Pick Up 185 | 4 7 . 10 32 11 11 7 3 . 22 3 7 4 3 35 26 Fast Attach 90 | 1 2 . . 9 4 6 1 1 . 11 . . 7 . 18 30 Attach 100 | 3 . 1 . 1 6 4 . 1 2 13 10 . 1 5 24 29 Detach 20 | 2 1 . . . . . . . . 2 2 . 3 . 7 3 Swap 150 | 1 8 6 5 4 3 14 6 5 1 31 7 2 4 10 32 11 Drop 137 | 4 3 . 3 28 8 15 11 4 . 14 . . 10 1 26 10 Fire 699 | 3 37 14 9 . 12 52 25 56 8 76 48 2 4 36 141 176 Melee 1 | . . . . . 1 . . . . . . . . . . . Ram 2 | . . . . . . . . . . . . . . . . 2 Kick 6 | . . . . . . . . . 5 . . . . . 1 . Crush 29 | . 2 . . . . . . . 1 . 10 1 7 . 2 6 Escape Stasis 15 | . . . . . . . . . . 8 . . . . . 7 Rewire 308 | . . . 180 . . 90 . . . 11 27 . . . . . Trap . | . . . . . . . . . . . . . . . . . Miscellaneous . | . . . . . . . . . . . . . . . . . Route ------- -11/Scrapyard -10/Materials (discovered 5 exits: [*Mat x2] / [*Min x2] / *Sub) -10/Subcaves (discovered 3 exits: Mat x2 / *Rec) -9/Recycling (discovered 2 exits: *Fac / *Scr) -9/Scraptown -6/Factory (discovered 5 exits: Fac x4 / *Ext) -6/Extension (discovered 2 exits: *Fac / *Cet) -6/Cetus -6/Archives (discovered 3 exits: *Fac / *Hub x2) -6/Hub_04(d) -5/Factory (discovered 3 exits: *Fac / *Upp x2) -5/Upper Caves -5/Upper Caves (discovered 2 exits: *Fac / *War) -5/Warlord -4/Proximity Caves -4/Factory (discovered 4 exits: *Res x3 / Upp) -3/Research (discovered 2 exits: *Tes x2) History --------- Turn | Location | Event 18 | -11/Scrapyard | Discovered new exit (range 1) 52 | -11/Scrapyard | Entered Materials 266 | -10/Materials | Discovered new exit (range 14) 278 | -10/Materials | Destroyed 8 combat bots 317 | -10/Materials | Build established: Mutant 568 | -10/Materials | Discovered new exit (range 11) 642 | -10/Materials | Discovered new exit (range 4) 804 | -10/Materials | Discovered new exit (range 10) 808 | -10/Materials | Discovered new exit (range 11) 842 | -10/Materials | Entered Subcaves 854 | -10/Subcaves | Ambushed by Subdwellers from Twisted Machinery 1100 | -10/Subcaves | Learned Materials emergency access door positions 1121 | -10/Subcaves | Visited Clippyterm 1124 | -10/Subcaves | Identified exit to Recycling 1124 | -10/Subcaves | Identified exit to Materials 1124 | -10/Subcaves | Learned location of Extension (-6) 1188 | -10/Subcaves | Entered Recycling 1196 | -9/Recycling | Identified exit to Factory 1384 | -9/Recycling | Scanned before Scraplab entrance 1530 | -9/Recycling | Lost 5 allies 1546 | -9/Recycling | Build established: Commander-Mutant 1863 | -9/Recycling | Core integrity fell below 50% 1906 | -9/Recycling | Lost 7 allies 2214 | -9/Recycling | Entered Scraplab 2225 | -9/Recycling | Discovered new exit (range 3) 2280 | -9/Recycling | Entered Scraptown 2280 | -9/Scraptown | Accompanied by 13 allies 2283 | -9/Scraptown | System corruption cleaned by C-Scrubber 2614 | -9/Scraptown | Visited Spacefarers 2632 | -9/Scraptown | Visited Symbiants 2659 | -9/Scraptown | Visited Cyclists 2720 | -9/Scraptown | Visited UFD Registry 2720 | -9/Scraptown | Registered with UFD as "Thunderlever" 2728 | -9/Scraptown | Visited Artisan Demo Area 2775 | -9/Scraptown | Heard Great Nut preacher, LISTEN AND RECITE! 2824 | -9/Scraptown | Entered Cyclist Reading Room 2901 | -9/Scraptown | Visited TADAMA 3160 | -9/Scraptown | Visited LU-1G1's Boring Crew 3220 | -9/Scraptown | Visited Curators Association 3253 | -9/Scraptown | Visited Science Guys 3427 | -9/Scraptown | Visited DA-N13 Charitable Foundation 3439 | -9/Scraptown | Found DCF Scrap (29 items) 3527 | -9/Scraptown | Visited Supply Room 3544 | -9/Scraptown | Visited Research Penetration Think Tank 3566 | -9/Scraptown | Visited Cartography Club 3600 | -9/Scraptown | Visited Derelict Rescue Squad 3729 | -9/Scraptown | Found Surveybot 17 Chip 3747 | -9/Scraptown | Learned location of Storage (-9) 3747 | -9/Scraptown | Learned location of Upper Caves (-5) 3747 | -9/Scraptown | Learned location of Proximity Caves (-5) 3747 | -9/Scraptown | Learned location of Hub_04(d) (-6) 3747 | -9/Scraptown | Learned 12 Factory zone layouts 3747 | -9/Scraptown | Learned 4 Access zone layouts 3747 | -9/Scraptown | Learned 4 Storage zone layouts 3747 | -9/Scraptown | Learned 4 Recycling zone layouts 3747 | -9/Scraptown | Learned 8 Lower Caves zone layouts 3747 | -9/Scraptown | Learned 8 Upper Caves zone layouts 3747 | -9/Scraptown | Learned 8 Proximity Caves zone layouts 3747 | -9/Scraptown | Learned 16 Proximity Caves zone layouts 3747 | -9/Scraptown | Learned 24 Proximity Caves zone layouts 3747 | -9/Scraptown | Learned 4 Hub_04(d) zone layouts 3747 | -9/Scraptown | Learned location of 1 exit from Lower Caves 3747 | -9/Scraptown | Learned location of 2 exits from Lower Caves 3752 | -9/Scraptown | Found Deep Structural Scanner 4030 | -9/Scraptown | Met Optimus 4030 | -9/Scraptown | Accepted into 0bPrime 4098 | -9/Scraptown | Discovered new exit (range 5) 4100 | -9/Scraptown | Civil war broke out across Scraptown 4104 | -9/Scraptown | Entered Factory 4104 | -6/Factory | Accompanied by 3 allies 4104 | -6/Factory | Evolved 8 slots: Power x1, Propulsion x2, Utility x3, Weapon x2 4105 | -6/Factory | Identified exit to Factory 4261 | -6/Factory | Murdered 3 allies 4361 | -6/Factory | Discovered new exit (range 6) 4413 | -6/Factory | Entered Extension 4511 | -6/Extension | Energy Cycler disabled 4511 | -6/Extension | Rescued a captive Derelict 4512 | -6/Extension | Rescued a captive Derelict 4512 | -6/Extension | Rescued a captive Derelict 4512 | -6/Extension | Rescued a captive Derelict 4514 | -6/Extension | Rescued a captive Derelict 4515 | -6/Extension | Rescued a captive Derelict 4519 | -6/Extension | Rescued a captive Derelict 4519 | -6/Extension | Rescued a captive Derelict 4519 | -6/Extension | Rescued a captive Derelict 4806 | -6/Extension | Build established: Derelict-Tank 5502 | -6/Extension | Discovered exit to Factory (range 10) 5503 | -6/Extension | Discovered new exit (range 6) 5569 | -6/Extension | Entered Cetus 5569 | -6/Cetus | Accompanied by 7 allies 5598 | -6/Cetus | Spotted Cetus Guard 5598 | -6/Cetus | Spotted Cetus Guard 5604 | -6/Cetus | Spotted Cetus Guard 5609 | -6/Cetus | Destroyed Cetus Guard 5613 | -6/Cetus | Spotted Cetus Guard 5618 | -6/Cetus | Destroyed Cetus Guard 5634 | -6/Cetus | Allies destroyed Cetus Guard 5639 | -6/Cetus | Destroyed Cetus Guard 5668 | -6/Cetus | Lost 6 allies 5921 | -6/Cetus | Build established: Scavenger-Tank 6035 | -6/Cetus | Discovered new exit (range 16) 6068 | -6/Cetus | Entered Archives 6068 | -6/Archives | Accompanied by 1 ally 6178 | -6/Archives | Discovered exit to Factory (range 14) 6202 | -6/Archives | Unable to access archive contents 6210 | -6/Archives | Discovered new exit (range 15) 6514 | -6/Archives | Discovered new exit (range 16) 6568 | -6/Archives | Entered Hub_04(d) 6610 | -6/Hub_04(d) | System corruption reached 10% 6704 | -6/Hub_04(d) | Entered Factory 6704 | -5/Factory | Accompanied by 2 allies 6704 | -5/Factory | Evolved 2 slots: Utility x2 6729 | -5/Factory | Lost 8 parts (1p3n4w) 7116 | -5/Factory | Fabricated A-02 Transporter? 7116 | -5/Factory | Discovered new exit (range 13) 7295 | -5/Factory | Discovered new exit (range 16) 7349 | -5/Factory | Build established: Hacker-Skirmisher 7857 | -5/Factory | Identified exit to Upper Caves 8083 | -5/Factory | Lost 4 parts (1p1u2w) 8090 | -5/Factory | Fabricated Centrium Heavy Treads? 8490 | -5/Factory | Build established: Tank 8491 | -5/Factory | Entered Upper Caves 8654 | -5/Upper Caves | System corruption reached 10% 8668 | -5/Upper Caves | Lost 3 parts (1n1u1w) 8759 | -5/Upper Caves | Learned Factory stockpile data 8823 | -5/Upper Caves | Build established: Scavenger-Tank 8886 | -5/Upper Caves | Attracted the attention of an 0b10 outpost 8952 | -5/Upper Caves | Lost 5 parts (2u3w) 9148 | -5/Upper Caves | Discovered new exit (range 6) 9210 | -5/Upper Caves | Entered another Upper Caves area 9211 | -5/Upper Caves | Encountered a Warlord checkpoint 9241 | -5/Upper Caves | Discovered new exit (range 15) 9501 | -5/Upper Caves | Build established: Tank 9623 | -5/Upper Caves | Discovered new exit (range 14) 9689 | -5/Upper Caves | Entered Warlord 9690 | -5/Warlord | Identified exit to Proximity Caves 9746 | -5/Warlord | System corruption cleaned by Quarantine Array 9977 | -5/Warlord | Build established: Skirmisher 10237 | -5/Warlord | Visited the Vortex Lab 10240 | -5/Warlord | Warlord's base attacked by MAIN.C 10249 | -5/Warlord | Found Prototype Energy Gun 10249 | -5/Warlord | Identified Vortex Shotgun 10252 | -5/Warlord | Found Vortex Shotgun 10351 | -5/Warlord | Rebuked by Warlord 10421 | -5/Warlord | Found Prototype Reactor 10421 | -5/Warlord | Identified Vortex Chain Reactor 10434 | -5/Warlord | Found Prototype Device 10434 | -5/Warlord | Identified Exp. Cloaking Device 10449 | -5/Warlord | Found Prototype Device 10449 | -5/Warlord | Identified System Purifier 10456 | -5/Warlord | Found Prototype Hackware 10462 | -5/Warlord | Found Prototype Processor 10590 | -5/Warlord | Warlord forces counterattacked 10667 | -5/Warlord | Spotted Striker 10669 | -5/Warlord | Spotted Striker 10717 | -5/Warlord | Build established: Scavenger-Tank 10717 | -5/Warlord | Spotted Executioner 10724 | -5/Warlord | Spotted Striker 10725 | -5/Warlord | Lost 13 allies 10745 | -5/Warlord | Spotted Executioner 10748 | -5/Warlord | Spotted Executioner 10758 | -5/Warlord | Entered Proximity Caves 10759 | -4/Proximity Caves | Identified exit to Factory 10778 | -4/Proximity Caves | Lost 3 parts (3w) 10779 | -4/Proximity Caves | Lost 12 allies 10933 | -4/Proximity Caves | Spotted B-86 Titan 11071 | -4/Proximity Caves | Build established: Tank 11096 | -4/Proximity Caves | Learned location of 1 exit from Upper Caves 11102 | -4/Proximity Caves | Learned location of Quarantine (-2) 11238 | -4/Proximity Caves | Received a Behemoth hack from an annoying Tinkerer 11326 | -4/Proximity Caves | Core integrity fell below 50% 11484 | -4/Proximity Caves | Entered Factory 11484 | -4/Factory | Evolved 2 slots: Utility x2 11485 | -4/Factory | Identified exit to Research 11485 | -4/Factory | Identified exit to Upper Caves 11490 | -4/Factory | Identified Exp. Target Analyzer 11492 | -4/Factory | Identified Ghost Barrier 11588 | -4/Factory | Found Quantum Capacitor 12116 | -4/Factory | Build established: Hacker-Tank 13234 | -4/Factory | First assault squad dispatched 13314 | -4/Factory | System corruption reached 10% 13349 | -4/Factory | Lost 4 parts (1p2u1w) 13457 | -4/Factory | Garrison activated, responded to threat 13511 | -4/Factory | Lost 6 parts (2n3u1w) 13557 | -4/Factory | Spotted B-86 Titan 13614 | -4/Factory | Lost 5 parts (1n4w) 13821 | -4/Factory | Entered Research 13821 | -3/Research | Evolved 2 slots: Utility x2 13822 | -3/Research | Identified exit to Testing 14000 | -3/Research | Build established: Hacker-Gunner 14092 | -3/Research | Loaded intel: 5 recycling unit locations 14281 | -3/Research | Lost 3 parts (1p1u1w) 14428 | -3/Research | Build established: Hacker-Mutant 14990 | -3/Research | Destroyed 7 combat bots 14990 | -3/Research | Lost 9 parts (2p3n3u1w) 15071 | -3/Research | First assault squad dispatched 15253 | -3/Research | Garrison activated, responded to threat 15330 | -3/Research | Build established: Scavenger-Tank 15402 | -3/Research | System corruption reached 10% 15474 | -3/Research | Destroyed 7 combat bots 15491 | -3/Research | Lost 16 parts (2p4n4u6w) 15741 | -3/Research | Core integrity fell below 50% 15754 | -3/Research | Released all parts (8) 15783 | -3/Research | Lost 10 parts (1p2n5u2w) 15808 | -3/Research | Core integrity fell below 20% 15847 | -3/Research | Discovered exit to Testing (range 16) 15847 | -3/Research | Spotted B-86 Titan 15854 | -3/Research | Destroyed by H-71 Marshal with Heavy Mass Driver Last Messages --------------- 15842_ Triggered Stasis Trap. 15842_ A bubble of rippling energy engulfs the area. 15842_ Field strength at 83. 15842_ Field strength at 66. 15843_ Field strength at 37. 15844_ Field strength at 20. 15844_ P-80 Master resets P-80 Master, system corruption cleaned. 15845_ Field strength at 3. 15845_ Stasis field depleted. 15847_ EXIT=FOUND: TESTING 15847_ Lgt. Antimatter Reactor destroyed. 15849_ Connecting with Terminal... 15849_ ALERT: Suspicious activity at Terminal R009. Dispatching Investigation squad. 15852_ System corrupted: Heat flow error (+214). 15852_ Penetrated by Slug. 15852_ Slug penetrates G-67 Veteran. 15854_ Field Propulsion Array destroyed. Map ----- +----------------------------------------------------+ | ?????????????????# == # + #?????????????? | | ?????????????????# !# ###+###?????????????? | | ?????????????????# # ## #??????????????? | | ?????????????????# [ ! / #??????????????? | | ?????????????????# # ## !#??????????????? | | ?????????????#########/## #?? ##??????????????? | | ???????????# + #???#???????????????? | | ???????????# # #???????????????????? | | ???????????# # #???????????????????? | | ???????????# ?# #???????????????????? | | ???????????#########?#+##/##/###???? ????????????? | | ?????????????????????# #?? ????????? | | ?????????????????????# u #? ????????? | | ?????????????????????# T # !! / ???????? | | ?????????????????????# " !! ??????????? | | ?????????????????????# # ????????? | | ?????????????????????# " ????????? | | ?????????????????????# # ???????? | | ?????????????????????# u #??? # #????????? | | ?????????????????????###/#######?????#???????????? | | ???????????????????????# #???????????????????????? | | ???????????????????????# #???????????????????????? | | ?????????????????????### ###?????????????????????? | | ??????????#########+## #?????????????????????? | | ?????????? t gg ###### #??????????? | | ?????????? w >@ H +??????????? | | ?????????? u ggY ###### #??????????? | | ?????????????#+####### #?????????????????????? | | ?????????????????????###+###?????????????????????? | | ??????????????????????? ???????????????????????? | | ??????????????????????? ???????????????????????? | | ?????????????????????? ??????????????????????? | | ?????????????????????? !!/??????????????????????? | | ????????????????????? !!/#?????????????????????? | | ????????????????????? !!/#?????????????????????? | | ????????????????????##### ##?????????????????????? | | ?????????????????????????##??????????????????????? | | ?????????????????????????????????????????????????? | | ?????????????????????????????????????????????????? | | ?????????????????????????????????????????????????? | | ?????????????????????????????????????????????????? | | ?????????????????????????????????????????????????? | | ?????????????????????????????????????????????????? | | ?????????????????????????????????????????????????? | | ?????????????????????????????????????????????????? | | ?????????????????????????????????????????????????? | | ?????????????????????????????????????????????????? | | ?????????????????????????????????????????????????? | | ?????????????????????????????????????????????????? | | ?????????????????????????????????????????????????? | +----------------------------------------------------+ Best States ------------- Heat Dissipation 122 Coolant Potential 80 Energy Generation 55 Energy Capacity 800 Matter Stores 800 Matter Capacity 800 Sight Range 16 Terrain Scan Range 20 Terrain Scan Density 1210 Jamming Range 12 Power Amplification 20 Base Temperature (-) 150 Corruption Block 8 Armor Coverage 900 Resistance: KI 30 Propulsion Shielding 33 Evasion (%) 70 Target Analysis 10 Recoil Reduction 10 Matter Filtering 30 Particle Charging 20 Offensive Hacking 24 Defensive Hacking 20 Item Schematics ----------------- Centrium Heavy Treads | -5/Factory | Scanalyzed Centrium Medium Armor Plating | -4/Factory | Scanalyzed Quantum Capacitor | -4/Factory | Scanalyzed Robot Schematics ------------------ None Fabricated ------------ A-02 Transporter | x1 | -5/Factory | Preloaded Centrium Heavy Treads | x1 | -5/Factory Repaired ---------- Nothing Alien Tech Used ----------------- None Achievements -------------- None Challenges ------------ None Game ------ Seed NanofilamentsTerrainDevice Manual? 0 Play Time 03:56:13 Cumulative 20.5 hours Start 2025.08.04 @ 04:34:38 End 2025.08.04 @ 23:42:25 Sessions 2 Manual Loads 0 Difficulty Rogue Special Mode None Game No. 9 Rogue 9 Adventurer 0 Explorer 0 Win Type - Total 0 Types 0/0/0/0/0/0/0/0/0/0 Lore% 30 Gallery% 24 Achievement% 72 Wizard Run 0 Options --------- Layout 2 ASCII 0 Keyboard 1 Movement Vi Keybinds 0 Fullscreen 1 Font 28/SwanstonBold Map View 50x52 Zoom Use 0% Tactical HUD 1 Map Filters NONE Filters NONE Steam 1 RUN: a16eeea1-14cf-4075-849a-4d24e757fd9c